bitfinex/quotes_BTCUSD_20240730
["timestamp","ask_amount","ask_price","bid_price","bid_amount"]
[1722363586180,0.00083,66065.0,66064.0,2.53031813]
[1722363586415,0.00083,66065.0,66064.0,2.36366796]
[1722363586651,0.00083,66065.0,66064.0,2.60519649]
[1722363586886,0.00083,66065.0,66064.0,2.70519649]
[1722363587322,0.00083,66065.0,66064.0,2.65231844]
[1722363587760,0.00083,66065.0,66064.0,2.95505444]
[1722363588637,0.00853,66088.0,66075.0,1.636387]
[1722363588878,0.00853,66088.0,66075.0,2.05032159]
[1722363589142,0.00853,66088.0,66075.0,2.05968251]
[1722363589349,0.00853,66088.0,66075.0,1.93392961]
[1722363589589,0.00853,66088.0,66075.0,1.73499663]
[1722363589799,0.00853,66088.0,66075.0,0.79763332]
[1722363590013,0.00853,66088.0,66075.0,1.16456081]
[1722363590221,0.151323,66084.0,66075.0,1.03880779]
[1722363590433,0.151318,66086.0,66075.0,0.99387161]
[1722363590645,0.311158,66088.0,66075.0,1.29655761]
[1722363590857,0.15132,66085.0,66075.0,1.29655761]
[1722363591282,0.151318,66086.0,66075.0,1.29655761]
[1722363591977,0.311158,66088.0,66075.0,1.29655761]
[1722363592204,0.151327,66082.0,66075.0,0.69118561]
[1722363592425,0.151325,66083.0,66075.0,0.99387161]
[1722363592643,0.302648,66084.0,66075.0,0.69118561]
[1722363592894,0.453985,66082.0,66075.0,0.69118561]
[1722363593124,0.151323,66084.0,66075.0,0.69118561]
[1722363593362,0.151324,66083.0,66075.0,0.99387161]
[1722363593607,0.151323,66084.0,66075.0,0.99387161]
[1722363594022,0.151323,66084.0,66075.0,0.97933684]
[1722363594664,0.151324,66083.0,66075.0,0.97933684]
[1722363594872,0.302646,66084.0,66075.0,0.67665084]
[1722363595075,0.302658,66082.0,66075.0,0.16000784]
[1722363595284,0.384751,66083.0,66075.0,0.16000784]
[1722363595534,0.302667,66080.0,66075.0,0.16000784]
[1722363595737,0.15134,66077.0,66075.0,0.16000784]
[1722363596175,0.20487,66076.0,66075.0,0.16000784]
[1722363596314,0.05353,66076.0,66075.0,0.16000784]
[1722363596524,0.20487,66076.0,66075.0,0.16000784]
[1722363596734,0.05353,66076.0,66075.0,0.16000784]
[1722363597971,0.20487,66076.0,66075.0,0.16000784]
[1722363599561,0.507551,66076.0,66075.0,0.16000784]
[1722363599804,0.20487,66076.0,66075.0,0.15063304]
[1722363600044,0.05353,66076.0,66075.0,0.15063304]
[1722363600244,0.5091052,66076.0,66075.0,0.16000784]
[1722363600450,0.8117862,66076.0,66075.0,0.16000784]
[1722363600654,0.2064242,66076.0,66075.0,0.16000784]
[1722363600854,0.05353,66076.0,66075.0,0.15063304]
[1722363601062,0.507551,66076.0,66075.0,0.16000784]
[1722363601312,1.112913,66076.0,66075.0,0.0093748]
[1722363601555,0.11383,66076.0,66060.0,0.0771]
[1722363601805,0.75683,66065.0,66064.0,0.15063304]
[1722363602268,0.75683,66065.0,66064.0,0.16010441]
[1722363602505,0.517098,66065.0,66064.0,0.00947137]
[1722363602755,0.365732,66065.0,66061.0,0.000913]
[1722363602992,1.059607,66062.0,66061.0,0.000913]
[1722363603285,1.134907,66062.0,66061.0,0.000913]
[1722363603984,0.832162,66062.0,66061.0,0.000913]
[1722363604221,0.529417,66062.0,66061.0,0.000913]
[1722363604968,0.832162,66062.0,66061.0,0.000913]
[1722363605712,1.134907,66062.0,66061.0,0.000913]
[1722363606644,0.832162,66062.0,66061.0,0.000913]
[1722363606969,0.529417,66062.0,66061.0,0.000913]
[1722363607168,0.0802,66068.0,66061.0,0.15154604]
[1722363607435,0.151366,66065.0,66062.0,0.15063304]
[1722363607671,0.0015542,66064.0,66062.0,0.15063304]
[1722363607909,0.1529232,66064.0,66062.0,0.15063304]
[1722363608322,0.15137,66063.0,66062.0,0.15063304]
[1722363608496,0.1529232,66064.0,66062.0,0.15063304]
[1722363608697,0.15137,66063.0,66062.0,0.15063304]
[1722363608906,0.0015542,66063.0,66062.0,0.15063304]
[1722363609373,0.15137,66063.0,66062.0,0.15063304]
[1722363609795,0.0015542,66063.0,66062.0,0.16012197]
[1722363610017,0.0015542,66065.0,66064.0,0.151368]
[1722363610252,0.0015542,66073.0,66072.0,0.15135]
[1722363610477,0.0015542,66073.0,66072.0,1.11624587]
[1722363610741,0.0015542,66081.0,66075.0,0.756715]
[1722363610952,0.302638,66086.0,66075.0,0.756715]
[1722363610953,0.302646,66084.0,66075.0,0.4277776]
[1722363611156,0.302646,66084.0,66075.0,0.16000784]
[1722363611356,0.302658,66082.0,66075.0,0.16000784]
[1722363611484,0.151335,66079.0,66075.0,0.16000784]
[1722363611686,0.1528902,66078.0,66075.0,0.16000784]
[1722363612086,0.0015542,66077.0,66075.0,0.16000784]
[1722363612863,0.151336,66078.0,66075.0,0.16000784]
[1722363613013,0.0015542,66077.0,66075.0,0.16000784]
[1722363613599,0.462551,66076.0,66075.0,0.0093748]
[1722363613802,0.765232,66076.0,66075.0,0.0093748]
[1722363614000,0.151347,66073.0,66072.0,0.01453477]
[1722363614220,0.151347,66073.0,66072.0,0.16516781]
[1722363614621,0.454042,66073.0,66072.0,0.17456895]
[1722363614820,0.151347,66073.0,66072.0,0.17456895]
[1722363615023,0.1529012,66073.0,66072.0,0.17456895]
[1722363615225,0.454042,66073.0,66072.0,0.17456895]
[1722363615425,0.454042,66073.0,66072.0,0.00940114]
[1722363615426,1.121432,66073.0,66072.0,0.00940114]
[1722363615626,1.642227,66073.0,66072.0,0.00940114]
[1722363615854,0.756862,66062.0,66061.0,0.000913]
[1722363616057,0.756862,66062.0,66061.0,0.15154604]
[1722363616253,0.151372,66062.0,66061.0,0.15154604]
[1722363616428,0.151371,66063.0,66061.0,0.15154604]
[1722363616631,0.15137,66063.0,66062.0,0.15063304]
[1722363616842,0.454111,66063.0,66062.0,0.15063304]
[1722363617041,0.756852,66063.0,66062.0,0.16012197]
[1722363617240,0.756852,66063.0,66062.0,0.15063304]
[1722363617846,0.151372,66062.0,66061.0,0.000913]
[1722363618052,0.839062,66062.0,66061.0,0.000913]
[1722363618286,0.901962,66062.0,66061.0,0.000913]
[1722363618497,1.204707,66062.0,66061.0,0.000913]
[1722363619713,1.507452,66062.0,66061.0,0.000913]
[1722363620060,1.517452,66062.0,66061.0,0.000913]
[1722363620189,1.607452,66062.0,66061.0,0.000913]
[1722363620838,1.75808504,66062.0,66061.0,0.000913]
[1722363621241,1.607452,66062.0,66061.0,0.000913]
[1722363621757,1.304707,66062.0,66061.0,0.000913]
[1722363622690,0.901962,66062.0,66061.0,0.000913]
[1722363622902,0.756862,66062.0,66061.0,0.000913]
[1722363623871,0.302728,66066.0,66061.0,0.000913]
[1722363624033,0.151372,66062.0,66061.0,0.000913]
[1722363624236,0.454117,66062.0,66061.0,0.000913]
[1722363624670,0.756862,66062.0,66061.0,0.000913]
[1722363625793,0.454117,66062.0,66061.0,0.000913]
[1722363626047,0.756862,66062.0,66061.0,0.000913]
[1722363627491,0.00860061,66068.0,66061.0,0.15154604]
[1722363627660,0.0015542,66067.0,66062.0,0.15063304]
[1722363627858,0.1529162,66067.0,66062.0,0.16012197]
[1722363628016,0.151363,66066.0,66062.0,0.16012197]
[1722363628517,0.0015542,66065.0,66062.0,0.16012197]
[1722363628723,0.0015542,66070.0,66066.0,0.151363]
[1722363628949,0.0015542,66070.0,66067.0,0.16007807]
[1722363629369,0.454077,66068.0,66067.0,0.16007807]
[1722363629574,0.756795,66068.0,66067.0,0.00944503]
[1722363629725,0.454117,66062.0,66061.0,0.000913]
[1722363629931,1.059607,66062.0,66061.0,0.000913]
[1722363630341,1.362352,66062.0,66061.0,0.000913]
[1722363630555,1.059607,66062.0,66061.0,0.000913]
[1722363630957,0.756862,66062.0,66061.0,0.000913]
[1722363631378,0.454117,66062.0,66061.0,0.000913]
[1722363631590,0.302737,66064.0,66061.0,0.000913]
[1722363631931,0.0015542,66073.0,66062.0,0.66755004]
[1722363631932,0.0015542,66063.0,66062.0,0.66755004]
[1722363632190,0.0015542,66063.0,66062.0,0.67569591]
[1722363632408,0.302722,66068.0,66062.0,0.22157891]
[1722363632645,0.151366,66065.0,66062.0,0.22157891]
[1722363632863,0.0015542,66070.0,66064.0,0.302734]
[1722363633068,0.00853,66076.0,66065.0,0.15365997]
[1722363633280,0.00853,66076.0,66075.0,0.454029]
[1722363633532,0.00853,66076.0,66075.0,1.06328281]
[1722363633743,0.00853,66076.0,66075.0,1.09437896]
[1722363633985,0.00853,66076.0,66075.0,1.22014458]
[1722363634189,0.00853,66076.0,66075.0,1.09437896]
[1722363634515,0.00853,66076.0,66075.0,1.22014458]
[1722363634717,0.00853,66076.0,66075.0,1.09437896]
[1722363636442,0.00853,66076.0,66075.0,0.31466396]
[1722363636719,0.00853,66076.0,66075.0,0.17326396]
[1722363636936,0.462551,66076.0,66075.0,0.17326396]
[1722363637332,0.462551,66076.0,66075.0,0.02263092]
[1722363637585,0.765232,66076.0,66075.0,0.01453477]
[1722363637807,0.151343,66075.0,66069.0,0.151356]
[1722363638008,0.00853,66076.0,66068.0,0.01453477]
[1722363638009,0.00853,66076.0,66070.0,0.15063304]
[1722363638214,0.151352,66071.0,66070.0,0.15874831]
[1722363638418,0.75676,66071.0,66070.0,0.15874831]
[1722363638620,0.151352,66071.0,66070.0,0.15874831]
[1722363638748,0.454056,66071.0,66070.0,0.15063304]
[1722363639141,0.302697,66073.0,66070.0,0.15063304]
[1722363639419,0.15135,66072.0,66070.0,0.15063304]
[1722363639619,0.151352,66071.0,66070.0,0.15063304]
[1722363641508,0.454056,66071.0,66070.0,0.15063304]
[1722363641761,0.302713,66069.0,66065.0,0.000913]
[1722363641890,0.0664,66073.0,66065.0,0.000913]
[1722363641891,0.302704,66072.0,66066.0,0.15063304]
[1722363642277,0.0664,66073.0,66065.0,0.000913]
[1722363642278,0.45409,66066.0,66065.0,0.000913]
[1722363642456,0.756817,66066.0,66065.0,0.000913]
[1722363642873,1.059544,66066.0,66065.0,0.000913]
[1722363643488,0.756817,66066.0,66065.0,0.000913]
[1722363643715,0.0015542,66072.0,66065.0,0.15154604]
[1722363643919,0.151358,66069.0,66066.0,0.15063304]
[1722363644335,0.0015542,66068.0,66066.0,0.15063304]
[1722363644740,0.302708,66071.0,66066.0,0.15063304]
[1722363644957,0.151357,66069.0,66066.0,0.15063304]
[1722363645587,0.00853,66076.0,66066.0,0.15063304]
[1722363645791,0.151357,66069.0,66066.0,0.15063304]
[1722363646001,0.302716,66069.0,66066.0,0.15063304]
[1722363646207,0.15136,66068.0,66066.0,0.15063304]
[1722363646426,0.15136,66068.0,66065.0,0.076613]
[1722363646427,0.45409,66066.0,66065.0,0.000913]
[1722363646646,0.756817,66066.0,66065.0,0.000913]
[1722363647052,1.059544,66066.0,66065.0,0.000913]
[1722363647475,1.202044,66066.0,66065.0,0.000913]
[1722363648080,1.504771,66066.0,66065.0,0.000913]
[1722363651783,1.62420932,66066.0,66065.0,0.000913]
[1722363651986,1.61420932,66066.0,66065.0,0.000913]
[1722363652408,1.6142099,66066.0,66065.0,0.000913]
[1722363653898,1.604771,66066.0,66065.0,0.000913]
[1722363656329,1.61420964,66066.0,66065.0,0.000913]
[1722363656489,1.62420964,66066.0,66065.0,0.000913]
[1722363656692,1.61420964,66066.0,66065.0,0.000913]
[1722363657588,1.79484268,66066.0,66065.0,0.000913]
[1722363658129,2.09756968,66066.0,66065.0,0.000913]
[1722363658829,2.07757034,66066.0,66065.0,0.000913]
[1722363659068,2.09757034,66066.0,66065.0,0.000913]
[1722363660843,1.77484334,66066.0,66065.0,0.000913]
[1722363661304,2.07757034,66066.0,66065.0,0.000913]
[1722363661760,1.77484334,66066.0,66065.0,0.000913]
[1722363662025,1.159544,66066.0,66065.0,0.000913]
[1722363662816,0.151362,66067.0,66065.0,0.000913]
[1722363663074,0.00853,66076.0,66067.0,0.0798]
[1722363663317,0.00853,66076.0,66068.0,0.15063304]
[1722363663552,0.151355,66070.0,66068.0,0.17274822]
[1722363663878,0.151356,66069.0,66068.0,0.17274822]
[1722363664149,0.00853,66076.0,66072.0,0.151348]
[1722363664403,0.00853,66076.0,66073.0,0.15063304]
[1722363664652,0.00853,66076.0,66073.0,0.16248129]
[1722363664888,0.00853,66076.0,66075.0,0.454029]
[1722363665119,0.00853,66076.0,66075.0,0.61919681]
[1722363665350,0.00853,66076.0,66075.0,0.17398039]
[1722363665601,0.00853,66076.0,66075.0,0.62800939]
[1722363666340,0.00853,66076.0,66075.0,0.32532339]
[1722363666611,0.00853,66076.0,66075.0,0.17398039]
[1722363667079,0.462551,66076.0,66075.0,0.17398039]
[1722363667292,0.765232,66076.0,66075.0,0.17398039]
[1722363667492,0.765232,66076.0,66075.0,0.02334735]
[1722363667923,0.765232,66076.0,66075.0,0.01453477]
[1722363668129,0.462551,66076.0,66075.0,0.01453477]
[1722363668368,0.00853,66076.0,66075.0,0.01453477]
[1722363668567,0.00853,66076.0,66075.0,0.61919681]
[1722363668783,0.00853,66076.0,66075.0,0.92188281]
[1722363668991,0.00853,66076.0,66075.0,1.39998139]
[1722363670209,0.00853,66076.0,66075.0,1.38544662]
[1722363670413,0.00853,66076.0,66075.0,1.72013262]
[1722363670611,0.00853,66076.0,66075.0,1.97624587]
[1722363671237,0.00853,66088.0,66083.0,0.1]
[1722363671484,0.00853,66088.0,66087.0,1.20984104]
[1722363671680,0.00853,66088.0,66087.0,1.35344104]
[1722363671919,0.00853,66088.0,66087.0,1.3852001]
[1722363672321,0.00853,66088.0,66087.0,0.82187028]
[1722363672530,0.00853,66088.0,66087.0,1.0825691]
[1722363673703,0.00853,66088.0,66087.0,0.3029921]
[1722363674949,0.462469,66088.0,66087.0,0.3029921]
[1722363675148,0.159843,66088.0,66087.0,0.1593921]
[1722363675299,0.00853,66088.0,66087.0,0.15063304]
[1722363675499,0.00853,66088.0,66087.0,0.1593921]
[1722363675819,0.765095,66088.0,66087.0,0.1593921]
[1722363676220,0.462469,66088.0,66087.0,0.1593921]
[1722363676421,0.00853,66088.0,66087.0,0.1593921]
[1722363677247,0.0100842,66088.0,66087.0,0.1593921]
[1722363677929,0.00853,66088.0,66087.0,0.1593921]
[1722363678347,0.159843,66088.0,66087.0,0.1593921]
[1722363678536,0.462469,66088.0,66087.0,0.1593921]
[1722363678740,0.159843,66088.0,66087.0,0.1593921]
[1722363679255,0.00853,66088.0,66087.0,0.1593921]
[1722363679710,0.765095,66088.0,66087.0,0.1593921]
[1722363679932,1.067721,66088.0,66087.0,0.00875906]
[1722363680150,0.15134,66076.0,66075.0,0.00018218]
[1722363680355,0.15483,66088.0,66075.0,0.16534999]
[1722363680557,0.15483,66088.0,66076.0,0.15063304]
[1722363680558,0.15134,66077.0,66076.0,0.15063304]
[1722363680683,0.756694,66077.0,66076.0,0.15063304]
[1722363680886,1.059371,66077.0,66076.0,0.00880812]
[1722363681322,1.059383,66076.0,66075.0,0.00018218]
[1722363681542,1.205683,66076.0,66075.0,0.00018218]
[1722363681745,1.205683,66076.0,66075.0,0.00773582]
[1722363681980,1.205683,66076.0,66075.0,0.00018218]
[1722363682189,0.15134,66076.0,66075.0,0.00018218]
[1722363682531,0.454021,66076.0,66075.0,0.00018218]
[1722363682914,0.756702,66076.0,66075.0,0.00018218]
[1722363684539,1.059383,66076.0,66075.0,0.00018218]
[1722363684745,0.756702,66076.0,66075.0,0.00018218]
[1722363684965,1.059383,66076.0,66075.0,0.00018218]
[1722363685993,1.203483,66076.0,66075.0,0.00018218]
[1722363686419,1.506164,66076.0,66075.0,0.00018218]
[1722363686693,1.516164,66076.0,66075.0,0.00018218]
[1722363686907,1.506164,66076.0,66075.0,0.00018218]
[1722363688825,1.203483,66076.0,66075.0,0.00018218]
[1722363690499,1.506164,66076.0,66075.0,0.00018218]
[1722363691506,1.203483,66076.0,66075.0,0.00018218]
[1722363691708,1.059383,66076.0,66075.0,0.00018218]
[1722363691929,0.756702,66076.0,66075.0,0.00018218]
[1722363692320,1.059383,66076.0,66075.0,0.00018218]
[1722363693053,1.362064,66076.0,66075.0,0.00018218]
[1722363693836,1.422364,66076.0,66075.0,0.00018218]
[1722363694245,1.119683,66076.0,66075.0,0.00018218]
[1722363694454,1.059383,66076.0,66075.0,0.00018218]
[1722363696658,0.00877301,66079.0,66075.0,0.00018218]
[1722363696864,0.454021,66076.0,66075.0,0.06018218]
[1722363697318,0.454021,66076.0,66075.0,0.06109518]
[1722363697510,0.454851,66076.0,66075.0,0.06109518]
[1722363697718,0.00083,66076.0,66075.0,0.06109518]
[1722363697950,0.00083,66076.0,66075.0,0.66575722]
[1722363698136,0.00083,66076.0,66075.0,0.37760599]
[1722363698536,0.14257563,66080.0,66075.0,0.37760599]
[1722363698765,0.00149477,66079.0,66076.0,0.15063304]
[1722363698966,0.0015542,66087.0,66077.0,0.0806]
[1722363699162,0.311158,66088.0,66078.0,0.15063304]
[1722363699163,0.0015542,66080.0,66078.0,0.15063304]
[1722363699367,0.1528862,66080.0,66078.0,0.15063304]
[1722363699569,0.0015542,66080.0,66078.0,0.15063304]
[1722363699975,0.151331,66080.0,66079.0,0.00879474]
[1722363700319,0.1528832,66081.0,66079.0,0.15942778]
[1722363700528,0.151325,66083.0,66080.0,0.15063304]
[1722363700705,0.00144305,66082.0,66080.0,0.15063304]
[1722363700936,0.15132,66085.0,66081.0,0.00878582]
[1722363701152,0.15132,66085.0,66082.0,0.15063304]
[1722363701359,0.00853,66088.0,66082.0,0.15063304]
[1722363701582,0.00853,66088.0,66087.0,0.151315]
[1722363701848,0.00853,66088.0,66087.0,0.15063304]
[1722363702059,0.00853,66088.0,66087.0,0.1593921]
[1722363703345,0.00853,66088.0,66087.0,0.3930071]
[1722363703557,0.00853,66088.0,66087.0,0.6956381]
[1722363703767,0.00853,66088.0,66087.0,0.3930071]
[1722363705283,0.00853,66088.0,66087.0,0.2416921]
[1722363705678,0.00853,66088.0,66087.0,0.3930071]
[1722363706638,0.00853,66088.0,66087.0,1.3009001]
[1722363706839,0.00853,66088.0,66087.0,1.18801817]
[1722363707045,0.00853,66088.0,66087.0,1.18801554]
[1722363707254,0.00853,66088.0,66087.0,0.88538454]
[1722363707463,0.00853,66088.0,66087.0,0.43143854]
[1722363707665,0.00853,66088.0,66087.0,0.3056921]
[1722363708253,0.159843,66088.0,66087.0,0.3056921]
[1722363708457,0.00853,66088.0,66087.0,0.3056921]
[1722363709308,0.462469,66088.0,66087.0,0.00875906]
[1722363709516,0.765095,66088.0,66087.0,0.00875906]
[1722363709814,0.151337,66078.0,66075.0,0.06159518]
[1722363710059,0.302641,66085.0,66076.0,0.00880812]
[1722363710060,0.454015,66077.0,66076.0,0.00880812]
[1722363710271,0.756692,66077.0,66076.0,0.00880812]
[1722363710700,0.756702,66076.0,66075.0,0.00109518]
[1722363711015,1.059383,66076.0,66075.0,0.00109518]
[1722363711216,1.059383,66076.0,66075.0,0.000913]
[1722363711831,0.756702,66076.0,66075.0,0.000913]
[1722363712669,0.7419577,66076.0,66075.0,0.000913]
[1722363712867,0.4392767,66076.0,66075.0,0.000913]
[1722363713069,0.15134,66076.0,66075.0,0.15154604]
[1722363713293,0.454021,66076.0,66075.0,0.15154604]
[1722363713503,0.454021,66076.0,66075.0,0.16035862]
[1722363714120,0.756702,66076.0,66075.0,0.00972558]
[1722363714377,0.454021,66076.0,66075.0,0.00972558]
[1722363714570,0.15134,66076.0,66075.0,0.000913]
[1722363714773,0.454021,66076.0,66075.0,0.000913]
[1722363714972,0.454021,66076.0,66075.0,0.02426035]
[1722363715188,0.454021,66076.0,66075.0,0.01544777]
[1722363715567,0.15134,66076.0,66075.0,0.07854777]
[1722363715771,0.454021,66076.0,66075.0,0.07854777]
[1722363715973,0.30265,66083.0,66075.0,0.22345862]
[1722363716172,0.00111001,66079.0,66076.0,0.22903304]
[1722363716551,0.00111001,66079.0,66077.0,0.00880366]
[1722363716733,0.15244401,66079.0,66078.0,0.15063304]
[1722363716943,0.454002,66079.0,66078.0,0.15063304]
[1722363717176,0.454002,66079.0,66078.0,0.0087992]
[1722363717177,0.75667,66079.0,66078.0,0.0087992]
[1722363717380,0.15134,66076.0,66075.0,0.07854777]
[1722363717711,0.15134,66076.0,66075.0,0.23799339]
[1722363718322,0.302673,66078.0,66075.0,0.23799339]
[1722363718626,0.1528932,66077.0,66076.0,0.15063304]
[1722363718836,0.1528932,66077.0,66076.0,0.15944116]
[1722363719054,0.151339,66077.0,66076.0,0.15944116]
[1722363719620,0.302665,66080.0,66076.0,0.15944116]
[1722363719951,0.00853,66088.0,66076.0,0.31078116]
[1722363719952,0.151329,66081.0,66076.0,0.31078116]
[1722363720156,0.151329,66081.0,66076.0,0.15944116]
[1722363720362,0.0015542,66080.0,66076.0,0.15944116]
[1722363720571,0.302668,66079.0,66076.0,0.15944116]
[1722363721038,0.302673,66078.0,66076.0,0.15944116]
[1722363721263,0.454015,66077.0,66076.0,0.15944116]
[1722363721539,0.30266,66081.0,66076.0,0.15944116]
[1722363721763,0.151337,66078.0,66076.0,0.15944116]
[1722363721994,0.30247785,66081.0,66076.0,0.15944116]
[1722363722253,0.302643,66085.0,66076.0,0.15944116]
[1722363722485,0.151332,66080.0,66076.0,0.15944116]
[1722363722967,0.151334,66079.0,66076.0,0.15944116]
[1722363723213,0.00081355,66078.0,66076.0,0.15944116]
[1722363723465,0.00081355,66078.0,66077.0,0.454015]
[1722363723721,0.00853,66088.0,66079.0,0.0661]
[1722363723931,0.00853,66088.0,66080.0,0.15063304]
[1722363723932,0.302642,66085.0,66080.0,0.15063304]
[1722363724147,0.302647,66084.0,66080.0,0.15942332]
[1722363724301,0.151327,66082.0,66080.0,0.15942332]
[1722363724539,0.0015542,66083.0,66082.0,0.151327]
[1722363724712,0.0015542,66083.0,66082.0,0.31649481]
[1722363725039,0.159844,66088.0,66082.0,0.31649381]
[1722363725040,0.1528692,66087.0,66082.0,0.31649381]
[1722363725311,0.151315,66087.0,66083.0,0.15063304]
[1722363725510,0.00096966,66086.0,66083.0,0.15063304]
[1722363725688,0.151318,66086.0,66084.0,0.00877244]
[1722363725902,0.151318,66086.0,66084.0,0.15940548]
[1722363726393,0.159844,66088.0,66084.0,0.15940548]
[1722363726597,0.151316,66087.0,66084.0,0.15940548]
[1722363726822,0.151318,66086.0,66084.0,0.15940548]
[1722363727210,0.0015542,66086.0,66084.0,0.15940548]
[1722363727654,0.151318,66086.0,66084.0,0.15940548]
[1722363728810,0.45396,66085.0,66084.0,0.15940548]
[1722363729011,0.45396,66085.0,66084.0,0.00877244]
[1722363729226,0.453973,66083.0,66082.0,0.01453477]
[1722363729428,0.756622,66083.0,66082.0,0.01453477]
[1722363730014,1.059271,66083.0,66082.0,0.01453477]
[1722363730227,0.756702,66076.0,66075.0,0.01544777]
[1722363730422,0.756702,66076.0,66075.0,0.16608081]
[1722363730669,0.756702,66076.0,66075.0,0.17489339]
[1722363730875,1.059383,66076.0,66075.0,0.02426035]
[1722363731079,1.504164,66076.0,66075.0,0.00972558]
[1722363731320,1.504164,66076.0,66075.0,0.000913]
[1722363731655,1.201483,66076.0,66075.0,0.000913]
[1722363731847,0.756702,66076.0,66075.0,0.000913]
[1722363732085,0.756702,66076.0,66075.0,0.01544777]
[1722363732515,1.059383,66076.0,66075.0,0.01544777]
[1722363733555,1.059383,66076.0,66075.0,0.000913]
[1722363733901,1.362064,66076.0,66075.0,0.000913]
[1722363735014,2.25987804,66076.0,66075.0,0.000913]
[1722363735220,2.35987804,66076.0,66075.0,0.000913]
[1722363735425,2.82215904,66076.0,66075.0,0.000913]
[1722363735818,2.82215904,66076.0,66075.0,0.001913]
[1722363736022,2.82315904,66076.0,66075.0,0.001913]
[1722363736349,2.97385336,66076.0,66075.0,0.001913]
[1722363736937,2.075298,66066.0,66065.0,0.000913]
[1722363737151,2.175298,66066.0,66065.0,0.000913]
[1722363737799,2.33593104,66066.0,66065.0,0.000913]
[1722363738151,2.48662536,66066.0,66065.0,0.000913]
[1722363738526,2.65965804,66066.0,66065.0,0.001]
[1722363738929,1.832697,66062.0,66061.0,0.000913]
[1722363739156,2.08333004,66062.0,66061.0,0.000913]
[1722363739357,2.28173004,66062.0,66061.0,0.000913]
[1722363739562,2.27173004,66062.0,66061.0,0.000913]
[1722363740803,2.28373004,66062.0,66061.0,0.000913]
[1722363741694,1.830352,66062.0,66061.0,0.000913]
[1722363743360,1.818352,66062.0,66061.0,0.000913]
[1722363743606,1.830352,66062.0,66061.0,0.000913]
[1722363744166,1.818352,66062.0,66061.0,0.000913]
[1722363744381,1.823352,66062.0,66061.0,0.000913]
[1722363744582,2.28673004,66062.0,66061.0,0.000913]
[1722363744784,2.39862857,66062.0,66061.0,0.000913]
[1722363745292,2.39862857,66062.0,66037.0,0.0601]
[1722363745293,0.757137,66038.0,66037.0,0.0601]
[1722363745726,1.059992,66038.0,66037.0,0.0601]
[1722363746697,1.059992,66038.0,66037.0,0.07463477]
[1722363746857,0.757137,66038.0,66037.0,0.07463477]
[1722363747924,0.455282,66038.0,66037.0,0.07563477]
[1722363748125,0.001,66038.0,66037.0,0.37769781]
[1722363748347,0.001,66038.0,66037.0,1.05851781]
[1722363748584,0.001,66038.0,66037.0,1.06621683]
[1722363748792,0.001,66038.0,66037.0,0.76335683]
[1722363750381,0.001,66038.0,66037.0,0.46049683]
[1722363750558,0.001,66038.0,66037.0,0.74882206]
[1722363751172,0.001,66038.0,66037.0,1.06168206]
[1722363751434,0.001,66038.0,66037.0,1.51337887]
[1722363751635,0.001,66038.0,66037.0,1.56027221]
[1722363751757,0.001,66038.0,66037.0,1.51537887]
[1722363751970,0.001,66038.0,66037.0,1.58271889]
[1722363752169,0.001,66038.0,66037.0,1.57071889]
[1722363752419,0.001,66038.0,66037.0,1.54825456]
[1722363752626,0.001,66038.0,66037.0,1.37754206]
[1722363752847,0.001,66038.0,66037.0,1.24539983]
[1722363753161,0.001,66038.0,66037.0,1.20051452]
[1722363753364,0.151405,66048.0,66043.0,0.151416]
[1722363753570,0.151405,66048.0,66044.0,0.15063304]
[1722363753722,0.151405,66048.0,66044.0,0.15830527]
[1722363753925,0.151403,66049.0,66044.0,0.30971827]
[1722363754084,0.151403,66049.0,66045.0,0.1413]
[1722363754289,0.151403,66049.0,66046.0,0.15063304]
[1722363754501,0.151403,66049.0,66046.0,0.15829761]
[1722363755131,0.302785,66054.0,66046.0,0.15829761]
[1722363755332,0.639,66068.0,66049.0,0.151402]
[1722363755537,0.151393,66054.0,66050.0,0.15063304]
[1722363755739,0.151394,66053.0,66050.0,0.17281708]
[1722363755935,0.302765,66058.0,66051.0,0.0659]
[1722363755936,0.151383,66058.0,66051.0,0.0659]
[1722363756138,0.151383,66058.0,66053.0,0.0816]
[1722363756339,0.302756,66060.0,66054.0,0.15063304]
[1722363756593,0.4782,66068.0,66054.0,0.15063304]
[1722363756594,0.151388,66056.0,66054.0,0.15953933]
[1722363756812,0.302764,66058.0,66054.0,0.15953933]
[1722363756980,0.151384,66057.0,66054.0,0.15953933]
[1722363757460,0.4782,66068.0,66054.0,0.15953933]
[1722363757461,0.151388,66055.0,66054.0,0.15953933]
[1722363757763,0.151387,66056.0,66054.0,0.15953933]
[1722363758815,0.151387,66056.0,66054.0,0.17353933]
[1722363759012,0.151387,66056.0,66054.0,0.15953933]
[1722363759216,0.151386,66056.0,66054.0,0.15953933]
[1722363759428,0.30277,66057.0,66054.0,0.17353933]
[1722363759636,0.151388,66056.0,66054.0,0.17353933]
[1722363759836,0.151388,66055.0,66054.0,0.17353933]
[1722363760228,0.151388,66055.0,66054.0,0.02290629]
[1722363760229,0.756942,66055.0,66054.0,0.02290629]
[1722363760613,1.059719,66055.0,66054.0,0.014]
[1722363761011,1.059786,66051.0,66050.0,0.01453477]
[1722363762401,0.454263,66041.0,66040.0,0.09413477]
[1722363762602,0.454263,66041.0,66040.0,0.24476781]
[1722363762603,0.757105,66041.0,66040.0,0.24476781]
[1722363762714,0.757105,66041.0,66040.0,0.37734401]
[1722363763137,0.454263,66041.0,66040.0,0.37734401]
[1722363763544,0.151421,66041.0,66040.0,0.37734401]
[1722363764171,0.302832,66044.0,66040.0,0.39134401]
[1722363764348,0.302837,66042.0,66041.0,0.12584961]
[1722363764550,0.454255,66042.0,66041.0,0.13257285]
[1722363765355,0.302746,66062.0,66041.0,0.13257285]
[1722363765551,0.302746,66062.0,66042.0,0.12584961]
[1722363765552,0.151416,66043.0,66042.0,0.12584961]
[1722363765816,0.07531176,66058.0,66042.0,0.28320255]
[1722363766111,0.151404,66049.0,66044.0,0.151413]
[1722363766354,0.151404,66049.0,66043.0,0.3407106]
[1722363766355,0.151403,66049.0,66045.0,0.42789365]
[1722363766594,0.151402,66050.0,66046.0,0.12584961]